[Event "GER-ch Youth U14 2020"]
[Site "Willingen"]
[Date "2020.10.21"]
[Round "3.21"]
[White "Bock, Marlon"]
[Black "Mimkes, Antal"]
[Result "0-1"]
[ECO "A43"]
[WhiteElo "1776"]
[BlackElo "1567"]
[Annotator "NA RC"]
[PlyCount "75"]
[EventDate "2020.10.20"]
[EventType "swiss"]
[EventRounds "7"]
[EventCountry "GER"]
[SourceTitle "playchess.com"]
[Source "ChessBase"]
[SourceQuality "1"]
[TimeControl "40/5400+30:1800+30"]

1. d4 {[%emt 0:00:00]} c5 {[%emt 0:00:00]} 2. e3 {[%emt 0:00:00]} g6 {[%emt 0:00:39]} 3. f4 {[%emt 0:01:02]} Bg7 {[%emt 0:00:46]} 4. Nf3 {[%emt 0:00:55]} Nf6 {[%emt 0:01:03]} 5. Bd3 {[%emt 0:01:18]} O-O {[%emt 0:01:05]} 6. O-O {[%emt 0:01:01]} cxd4 {[%emt 0:01:36]} 7. exd4 {[%emt 0:01:21]} d6 {[%emt 0:00:35]} 8. c3 {[%emt 0:02:59]} Nc6 {[%emt 0:02:38]} 9. Nbd2 {[%emt 0:03:23]} Bg4 {[%emt 0:02:20]} 10. h3 {[%emt 0:07:16]} Bd7 {[%emt 0:01:16]} 11. Ne4 {[%emt 0:10:20]} Qc7 {[%emt 0:02:47]} 12. Qe2 {[%emt 0:08:42]} Rfe8 {[%emt 0:03:20]} 13. Qf2 {[%emt 0:03:41]} Rf8 {[%emt 0:10:27]} 14. Bd2 {[%emt 0:06:31]} Nxe4 {[%emt 0:02:25]} 15. Bxe4 {[%emt 0:00:30]} e5 {[%emt 0:01:01]} 16. fxe5 {[%emt 0:12:04]} dxe5 {[%emt 0:01:18]} 17. Qg3 {[%emt 0:03:07]} Qb6 {[%emt 0:02:03]} 18. Bxc6 {[%emt 0:05:28]} Bxc6 {[%emt 0:02:43]} 19. Nxe5 {[%emt 0:02:17]} Qxb2 {[%emt 0:02:42]} 20. Bf4 {[%emt 0:06:43]} Be4 {[%emt 0:03:53]} 21. Rae1 {[%emt 0:02:35]} Bf5 {[%emt 0:01:38]} 22. Rf2 {[%emt 0:02:45]} Qa3 {[%emt 0:05:01]} 23. Kh2 {[%emt 0:03:22]} Rac8 {[%emt 0:01:50]} 24. Re3 {[%emt 0:00:21]} Rfe8 {[%emt 0:06:32]} 25. Rfe2 {[%emt 0:05:15]} Qa6 {[%emt 0:03:54]} 26. Qf3 {[%emt 0:02:07]} b5 {[%emt 0:07:02]} 27. g4 {[%emt 0:01:14]} Bb1 {[%emt 0:04:09]} 28. Qf1 {[%emt 0:01:38]} f6 {[%emt 0:03:46]} 29. Qxb1 {[%emt 0:01:35]} fxe5 {[%emt 0:00:23]} 30. Qb3+ {[%emt 0:00:42]} Kh8 {[%emt 0:00:26]} 31. Bxe5 {[%emt 0:01:29]} Bxe5+ {[%emt 0:01:19]} 32. Rxe5 {[%emt 0:00:12]} Rxe5 {[%emt 0:00:59]} 33. dxe5 {[%emt 0:01:08]} b4 {[%emt 0:01:38]} 34. c4 {[%emt 0:02:09]} Qxc4 {[%emt 0:05:02]} 35. Qf3 {[%emt 0:01:30]} Kg8 {[%emt 0:06:31]} 36. e6 Rf8 37. e7 Rxf3 38. e8=Q+ 0-1

[Event "GER-ch Youth U14 2020"]
[Site "Willingen"]
[Date "2020.10.21"]
[Round "3.22"]
[White "Ehrig, Leon Chris"]
[Black "Wiedersich, Hendryk"]
[Result "1/2-1/2"]
[ECO "B23"]
[WhiteElo "1718"]
[BlackElo "1570"]
[Annotator "NA RC"]
[PlyCount "96"]
[EventDate "2020.10.20"]
[EventType "swiss"]
[EventRounds "7"]
[EventCountry "GER"]
[SourceTitle "playchess.com"]
[Source "ChessBase"]
[SourceQuality "1"]
[TimeControl "40/5400+30:1800+30"]

1. e4 {[%emt 0:00:00]} c5 {[%emt 0:00:00]} 2. Nc3 {[%emt 0:00:00]} d6 {[%emt 0:00:00]} 3. f4 {[%emt 0:00:01]} e6 {[%emt 0:00:02]} 4. Nf3 {[%emt 0:00:08]} a6 {[%emt 0:00:36]} 5. g3 {[%emt 0:00:12]} b5 {[%emt 0:00:40]} 6. Bg2 {[%emt 0:00:24]} Bb7 {[%emt 0:00:13]} 7. d3 {[%emt 0:01:01]} Be7 {[%emt 0:01:21]} 8. O-O {[%emt 0:00:50]} Nd7 {[%emt 0:04:12]} 9. Qe2 {[%emt 0:11:10]} Qc7 {[%emt 0:06:54]} 10. Bd2 {[%emt 0:03:50]} Ngf6 {[%emt 0:06:16]} 11. Rae1 {[%emt 0:03:59]} e5 {[%emt 0:00:23]} 12. Nd1 {[%emt 0:05:42]} O-O {[%emt 0:01:33]} 13. Ne3 {[%emt 0:04:09]} Rfe8 {[%emt 0:04:37]} 14. fxe5 {[%emt 0:08:20]} Nxe5 {[%emt 0:01:02]} 15. Nxe5 {[%emt 0:00:46]} dxe5 {[%emt 0:00:07]} 16. Nf5 {[%emt 0:00:10]} Bc8 {[%emt 0:10:09]} 17. Nxe7+ {[%emt 0:03:09]} Rxe7 {[%emt 0:02:38]} 18. Bg5 {[%emt 0:00:33]} Bg4 {[%emt 0:01:12]} 19. Qe3 {[%emt 0:03:12]} Re6 {[%emt 0:01:05]} 20. Bxf6 {[%emt 0:00:30]} Rxf6 {[%emt 0:00:25]} 21. Rxf6 {[%emt 0:01:45]} gxf6 {[%emt 0:00:38]} 22. Qh6 {[%emt 0:00:26]} Qb6 {[%emt 0:00:40]} 23. h3 {[%emt 0:00:26]} Be6 {[%emt 0:02:14]} 24. Qxf6 {[%emt 0:04:38]} c4+ {[%emt 0:00:10]} 25. Kh2 {[%emt 0:01:29]} cxd3 {[%emt 0:00:12]} 26. cxd3 {[%emt 0:00:10]} Qd4 {[%emt 0:00:18]} 27. h4 {[%emt 0:04:55]} Qxb2 {[%emt 0:00:57]} 28. h5 {[%emt 0:02:58]} Rc8 {[%emt 0:05:28]} 29. Rf1 {[%emt 0:24:40]} Re8 {[%emt 0:28:24]} 30. h6 {[%emt 0:03:33]} Kf8 {[%emt 0:00:11]} 31. Rf2 {[%emt 0:01:00]} Qd4 {[%emt 0:01:11]} 32. Bh3 {[%emt 0:02:16]} Qd8 {[%emt 0:06:39]} 33. Qg7+ {[%emt 0:01:12]} Ke7 {[%emt 0:00:10]} 34. Bxe6 {[%emt 0:00:11]} Kxe6 {[%emt 0:01:01]} 35. Qxf7+ {[%emt 0:00:14]} Kd6 {[%emt 0:00:28]} 36. Qd5+ {[%emt 0:01:32]} Kc7 {[%emt 0:00:23]} 37. Rf7+ {[%emt 0:00:14]} Kb6 {[%emt 0:00:39]} 38. Rxh7 {[%emt 0:08:09]} Qg5 {[%emt 0:02:39]} 39. Qb7+ {[%emt 0:00:34]} Ka5 {[%emt 0:00:18]} 40. Qc7+ {[%emt 0:00:10]} Kb4 {[%emt 0:00:20]} 41. Qd6+ {[%emt 0:31:13]} Ka5 {[%emt 0:30:58]} 42. Ra7 {[%emt 0:00:21]} Qh5+ {[%emt 0:00:33]} 43. Kg1 {[%emt 0:00:00]} Qd1+ {[%emt 0:00:00]} 44. Kf2 {[%emt 0:00:00]} Qd2+ {[%emt 0:00:00]} 45. Kf3 {[%emt 0:00:00]} Qd1+ {[%emt 0:00:00]} 46. Ke3 {[%emt 0:00:00]} Qe1+ {[%emt 0:00:00]} 47. Kf3 {[%emt 0:00:00]} Qf1+ 48. Kg4 Rg8+ 1/2-1/2

[Event "GER-ch Youth U14 2020"]
[Site "Willingen"]
[Date "2020.10.22"]
[Round "4.1"]
[White "Albert, Markus"]
[Black "Halabi, Ibrahim"]
[Result "1-0"]
[ECO "B95"]
[WhiteElo "1727"]
[BlackElo "1895"]
[Annotator "NA RC"]
[PlyCount "53"]
[EventDate "2020.10.20"]
[EventType "swiss"]
[EventRounds "7"]
[EventCountry "GER"]
[SourceTitle "playchess.com"]
[Source "ChessBase"]
[SourceQuality "1"]
[TimeControl "40/5400+30:1800+30"]

{[%evp 15,46,0,41,31,41,41,33,-15,35,0,0,0,0,0,40,0,0,0,0,0,50,15,837,935,676,772,1035,1350,1013,1318,29986,29987,29987]} 1. e4 {[%emt 0:00:00]} c5 {[%emt 0:00:00]} 2. Nf3 {[%emt 0:00:00]} d6 {[%emt 0:00:05]} 3. d4 {[%emt 0:00:14]} cxd4 {[%emt 0:00:22]} 4. Nxd4 {[%emt 0:00:10]} Nf6 {[%emt 0:00:05]} 5. Nc3 {[%emt 0:00:17]} a6 {[%emt 0:00:33]} 6. Bg5 {[%emt 0:00:29]} e6 {[%emt 0:00:10]} 7. Qe2 {[%emt 0:00:17]} Be7 {[%emt 0:00:41]} 8. f4 {[%emt 0:01:22]} Qc7 {[%emt 0:02:52] B98: Sicilian Najdorf: 6 Bg5 e6 7 f4 Be7, sidelines.} 9. O-O-O {[%emt 0:03:33]} Nbd7 {[%emt 0:01:48]} 10. g4 {[%emt 0:02:18]} b5 {[%emt 0:01:40]} 11. Bg2 {[%emt 0:05:19]} Bb7 {[%emt 0:00:59]} (11... b4 $5 {[%cal Rb4c3]} 12. e5 bxc3 13. Bxa8 dxe5 14. fxe5 (14. Nc6 $2 Bb7 $19) 14... Nxe5 $14) 12. e5 {[%emt 0:02:21]} dxe5 {[%emt 0:06:32]} 13. fxe5 {[%emt 0:00:37]} Nd5 {[%emt 0:01:31]} 14. Bxe7 {[%emt 0:00:40]} Nxc3 {[%emt 0:02:10]} 15. bxc3 {[%emt 0:00:20]} Kxe7 {[%emt 0:01:13]} 16. Bxb7 {[%emt 0:00:41]} Qxb7 {[%emt 0:00:14]} 17. Rhf1 {[%emt 0:01:45]} Rac8 {[%emt 0:07:00]} 18. Qe3 {[%emt 0:06:35] [#]} Rhe8 $2 $146 {[%emt 0:09:25] [#]} (18... Ke8 $14) ({Predecessor:} 18... Qc7 19. Qg5+ Ke8 20. Rxf7 Kxf7 21. Rf1+ Nf6 22. Rxf6+ gxf6 23. Qxf6+ Kg8 24. Qxe6+ Qf7 25. Qxc8+ Kg7 26. Nf5+ {1-0 (26) Ribero,G (1901)-Salcedo,P (2035) Cali 2016}) 19. Nxe6 $1 {[%emt 0:14:20]} Kxe6 {[%emt 0:10:09]} 20. Qg5 {[%emt 0:03:22]} Nxe5 {[%emt 0:03:19]} 21. Qxg7 {[%emt 0:06:18]} Qe7 {[%emt 0:05:10]} 22. g5 {[%emt 0:01:04]} f5 {[%emt 0:06:18]} 23. Qh6+ {[%emt 0:00:46]} Ng6 {[%emt 0:01:30]} 24. Rfe1+ {[%emt 0:00:22]} Kf7 {[%emt 0:04:32]} 25. Qxh7+ {[%emt 0:00:24]} Kf8 {[%emt 0:00:13]} 26. Rxe7 {[%emt 0:00:13]} Nxe7 {[%emt 0:00:05]} 27. g6 {[%emt 0:00:18]} 1-0

[Event "GER-ch Youth U14 2020"]
[Site "Willingen"]
[Date "2020.10.22"]
[Round "4.8"]
[White "Kort, Felix"]
[Black "Stork, Christopher"]
[Result "0-1"]
[ECO "A56"]
[WhiteElo "1823"]
[BlackElo "1869"]
[Annotator "NA RC"]
[PlyCount "80"]
[EventDate "2020.10.20"]
[EventType "swiss"]
[EventRounds "7"]
[EventCountry "GER"]
[SourceTitle "playchess.com"]
[Source "ChessBase"]
[SourceQuality "1"]
[TimeControl "40/5400+30:1800+30"]

{[%evp 11,59,15,12,-43,25,0,70,66,66,55,116,68,132,66,79,64,116,124,124,32767,137,88,89,82,97,32767,-2,32767,-9,-30,32767,32767,-72,32767,-34,32767,32767,32767,32767,32767,32767,32767,32767,32767,32767,0,0,0,0,-692]} 1. d4 {[%emt 0:00:00]} Nf6 {[%emt 0:00:00]} 2. c4 {[%emt 0:00:00]} c5 {[%emt 0:00:00]} 3. d5 {[%emt 0:00:00]} g6 {[%emt 0:00:13]} 4. Nc3 {[%emt 0:00:08]} Bg7 {[%emt 0:00:27]} 5. e4 {[%emt 0:00:35]} O-O {[%emt 0:00:39]} 6. f4 {[%emt 0:08:12] E70: King's Indian: Miscellaneous lines with 4 e4, including 5 Nge2 and 5 Bd3 0-0 6 Nge2.} d6 {[%emt 0:02:49]} 7. h3 {[%emt 0:03:57]} Nbd7 {[%emt 0:05:17]} (7... e5 $15 8. fxe5 Nh5) 8. Nf3 {[%emt 0:01:03]} Qc7 {[%emt 0:02:39]} ({Black should play} 8... Nh5 $11) 9. Bd3 {[%emt 0:03:01]} a6 {[%emt 0:08:18]} 10. O-O {[%emt 0:02:06] [#]} e6 $146 {[%emt 0:02:42]} (10... b5 $1 $14) ({Predecessor:} 10... b6 11. Be3 Bb7 12. Qd2 e6 13. Rae1 exd5 14. exd5 Rae8 15. Ng5 Qd8 16. g4 h5 17. Qg2 Re7 18. gxh5 Nxh5 {0-1 (42) Martinez Torres,J (1495)-Llaneras Henarejos,M (1643) Benidorm 2017}) 11. Re1 {[%emt 0:04:37]} (11. dxe6 $16 fxe6 12. Ng5) 11... exd5 {[%emt 0:02:52]} (11... e5 $14) 12. cxd5 {[%emt 0:02:01]} ({Don't play} 12. exd5 $6 b5 $11) 12... Re8 {[%emt 0:03:12]} 13. a4 {[%emt 0:01:46]} b6 {[%emt 0:06:24]} 14. Bc4 {[%emt 0:09:01]} Bb7 {[%emt 0:01:59]} 15. Qd3 {[%emt 0:14:06]} Rad8 {[%emt 0:17:21]} 16. Bxa6 {[%emt 0:07:43]} Bxa6 {[%emt 0:04:08]} 17. Qxa6 {[%emt 0:00:50]} c4 {[%emt 0:01:43]} 18. Be3 {[%emt 0:16:43]} Nxe4 {[%emt 0:04:09]} (18... Ra8 $5 19. Qb5 $8 (19. Nb5 $2 Qb8 $19) 19... Nxe4 20. Nxe4 Rxe4 $11) 19. Bd4 {[%emt 0:02:10]} Bxd4+ {[%emt 0:05:37]} 20. Nxd4 {[%emt 0:01:54]} Qc5 {[%emt 0:04:05]} 21. Rad1 {[%emt 0:06:03]} Nxc3 {[%emt 0:06:12]} 22. bxc3 {[%emt 0:00:51]} Qxd5 {[%emt 0:02:30]} 23. Qa7 {[%emt 0:02:40]} Nc5 {[%emt 0:02:42]} 24. Qxb6 {[%emt 0:04:34]} Nd3 {[%emt 0:01:19]} 25. Rxe8+ {[%emt 0:01:01]} Rxe8 {[%emt 0:00:02]} 26. Qb5 {[%emt 0:01:40]} Qe4 {[%emt 0:01:39]} 27. Rf1 {[%emt 0:02:01]} Qe3+ {[%emt 0:06:31]} 28. Kh1 {[%emt 0:00:56]} Re4 {[%emt 0:00:39]} 29. Qb8+ {[%emt 0:02:23]} Kg7 {[%emt 0:00:31]} 30. f5 $19 {[%emt 0:00:45]} (30. Rf3 $11 Qe1+ 31. Kh2 Rxf4 32. Rxf4) 30... Qg3 {[%emt 0:05:39]} 31. f6+ {[%emt 0:00:52]} Kh6 {[%emt 0:00:05]} 32. Qf8+ {[%emt 0:00:37]} Kh5 {[%emt 0:01:50]} 33. Nf3 {[%emt 0:00:58]} Re2 {[%emt 0:00:32]} 34. Ne1 {[%emt 0:01:03]} Nxe1 {[%emt 0:00:42]} 35. Rf5+ {[%emt 0:00:30]} gxf5 {[%emt 0:00:09]} 36. Qxf7+ {[%emt 0:00:07]} Qg6 {[%emt 0:00:04]} 37. g4+ {[%emt 0:00:21]} fxg4 {[%emt 0:00:22]} 38. hxg4+ {[%emt 0:00:10]} Kxg4 {[%emt 0:00:19]} 39. Qd7+ {[%emt 0:01:00]} Kh4 {[%emt 0:00:16]} 40. Qc6 {[%emt 0:01:02]} Qg2+ {[%emt 0:00:52]} 0-1

[Event "GER-ch Youth U14 2020"]
[Site "Willingen"]
[Date "2020.10.22"]
[Round "4.13"]
[White "Spriestersbach, Kai"]
[Black "Klühs, Gustaf"]
[Result "1-0"]
[ECO "C10"]
[WhiteElo "1863"]
[BlackElo "1827"]
[Annotator "NA RC"]
[PlyCount "65"]
[EventDate "2020.10.20"]
[EventType "swiss"]
[EventRounds "7"]
[EventCountry "GER"]
[SourceTitle "playchess.com"]
[Source "ChessBase"]
[SourceQuality "1"]
[TimeControl "40/5400+30:1800+30"]

{[%evp 15,60,15,34,34,31,33,32,65,85,39,87,113,152,75,66,65,77,32767,97,93,246,32767,197,32767,32767,32767,32767,32767,227,232,222,187,293,32767,32767,32767,32767,32767,32767,32767,32767,32767,32767,32767,32767,1360,29993]} 1. e4 e6 {[%emt 0:00:00]} 2. d4 {[%emt 0:00:00]} d5 {[%emt 0:00:00]} 3. Nc3 {[%emt 0:00:00]} dxe4 {[%emt 0:00:00]} 4. Nxe4 {[%emt 0:00:00]} Nd7 {[%emt 0:00:00]} 5. Bd3 {[%emt 0:01:55]} Ngf6 {[%emt 0:00:06]} 6. c3 {[%emt 0:00:17]} Be7 {[%emt 0:00:08]} 7. Nf3 {[%emt 0:00:14]} O-O {[%emt 0:00:49]} 8. Bf4 {[%emt 0:00:53] C10: French with 3 Nc3: Unusual Black 3rd moves and 3...dxe4.} b6 {[%emt 0:01:53]} 9. Qe2 {[%emt 0:00:49]} Bb7 {[%emt 0:00:22]} 10. Nxf6+ {[%emt 0:09:19]} Bxf6 {[%emt 0:01:33]} 11. O-O-O {[%emt 0:00:30]} Qc8 {[%emt 0:04:40] [#]} 12. Ne5 $146 {[%emt 0:04:11]} ({Predecessor:} 12. h4 $16 c5 13. Ng5 h6 14. Ne4 cxd4 15. Bb5 Bxe4 16. Bxd7 Qxd7 17. Qxe4 Qa4 18. Kb1 {½-½ (53) Jacek,K (1835)-Starzynski,W Chojnice 2005}) 12... g6 {[%emt 0:29:29] [#]} (12... c5 $11) 13. h4 $1 {[%emt 0:06:14]} c5 {[%emt 0:18:17]} (13... Bxe5 $142 14. dxe5 Nc5) 14. Bb5 {[%emt 0:24:54]} (14. h5 $18 g5 15. Nxd7 Qxd7 16. dxc5) 14... Nxe5 {[%emt 0:01:57]} 15. dxe5 {[%emt 0:01:22]} Bg7 {[%emt 0:04:09]} 16. f3 {[%emt 0:08:35]} Bc6 {[%emt 0:08:11]} 17. Rd6 {[%emt 0:02:41]} Bd5 {[%emt 0:02:19]} (17... Bxb5 $16 18. Qxb5 Qe8) 18. c4 {[%emt 0:02:58]} Bb7 {[%emt 0:02:07]} 19. Ba4 {[%emt 0:07:03]} Qc7 {[%emt 0:09:46]} 20. Rd7 {[%emt 0:08:40]} Qc8 {[%emt 0:00:11]} 21. Rhd1 {[%emt 0:01:06]} Bc6 $2 {[%emt 0:00:14]} (21... a6 $16 {was worth a try.}) 22. Bxc6 {[%emt 0:00:15]} Qxc6 {[%emt 0:00:03]} 23. b3 {[%emt 0:02:17]} Qc8 {[%emt 0:01:18]} (23... Rac8 {was called for.} 24. h5 (24. Rxa7 Rc7 $16) 24... Rfe8) 24. Bg5 {[%emt 0:03:18]} Qa6 {[%emt 0:01:44]} 25. Kb2 {[%emt 0:02:41]} Qc8 {[%emt 0:02:39]} 26. Bf6 {[%emt 0:00:25]} Qb8 {[%emt 0:04:40]} 27. Bxg7 {[%emt 0:03:07]} Kxg7 {[%emt 0:00:06]} 28. h5 {[%emt 0:00:31]} a5 {[%emt 0:02:43]} 29. Qe3 {[%emt 0:00:48]} Kg8 {[%emt 0:02:50] [#]} 30. Qg5 $18 {[%emt 0:00:34]} f6 {[%emt 0:01:43]} 31. exf6 {[%emt 0:01:01]} a4 {[%emt 0:00:42]} 32. hxg6 {[%emt 0:00:22]} h6 {[%emt 0:00:06]} 33. Rg7+ {[%emt 0:00:06]} 1-0

[Event "GER-ch Youth U14 2020"]
[Site "Willingen"]
[Date "2020.10.22"]
[Round "4.17"]
[White "Schwartz, Oliver"]
[Black "Kageler, Anton Paul"]
[Result "0-1"]
[ECO "B76"]
[WhiteElo "1794"]
[BlackElo "1664"]
[Annotator "NA RC"]
[PlyCount "60"]
[EventDate "2020.10.20"]
[EventType "swiss"]
[EventRounds "7"]
[EventCountry "GER"]
[SourceTitle "playchess.com"]
[Source "ChessBase"]
[SourceQuality "1"]
[TimeControl "40/5400+30:1800+30"]

1. e4 {[%emt 0:00:00]} c5 {[%emt 0:00:00]} 2. Nf3 {[%emt 0:00:00]} d6 {[%emt 0:00:00]} 3. d4 {[%emt 0:00:00]} cxd4 {[%emt 0:00:05]} 4. Nxd4 {[%emt 0:00:00]} Nf6 {[%emt 0:00:18]} 5. Nc3 {[%emt 0:00:05]} g6 {[%emt 0:00:17]} 6. f3 {[%emt 0:00:26]} Bg7 {[%emt 0:00:11]} 7. Be3 {[%emt 0:00:07]} O-O {[%emt 0:00:19]} 8. Qd2 {[%emt 0:01:27]} Nc6 {[%emt 0:00:15]} 9. O-O-O {[%emt 0:00:12]} d5 {[%emt 0:00:45]} 10. exd5 {[%emt 0:00:11]} Nxd5 {[%emt 0:00:13]} 11. Nxc6 {[%emt 0:00:13]} bxc6 {[%emt 0:00:14]} 12. Bd4 {[%emt 0:00:07]} e5 {[%emt 0:01:19]} 13. Bc5 {[%emt 0:00:09]} Be6 {[%emt 0:17:04]} 14. a3 {[%emt 0:29:32]} Qc7 {[%emt 0:22:10]} 15. Bxf8 {[%emt 0:11:45]} Rxf8 {[%emt 0:01:38]} 16. h4 {[%emt 0:01:22]} Nxc3 {[%emt 0:02:53]} 17. Qxc3 {[%emt 0:00:35]} Rb8 {[%emt 0:03:05]} 18. Qd2 {[%emt 0:05:30]} e4 {[%emt 0:08:28]} 19. c3 {[%emt 0:00:55]} Qb6 {[%emt 0:00:41]} 20. b4 {[%emt 0:21:42]} e3 {[%emt 0:11:33]} 21. Qc2 {[%emt 0:03:30]} c5 {[%emt 0:02:10]} 22. h5 {[%emt 0:02:15]} cxb4 {[%emt 0:00:50]} 23. axb4 {[%emt 0:00:36]} Rc8 {[%emt 0:02:57]} 24. c4 {[%emt 0:12:04]} Qxb4 {[%emt 0:00:54]} 25. Rd3 {[%emt 0:01:18]} Qe1+ {[%emt 0:14:44]} 26. Rd1 {[%emt 0:00:10]} Qa5 {[%emt 0:00:39]} 27. Qb3 {[%emt 0:02:10]} Qa1+ {[%emt 0:06:18]} 28. Kc2 {[%emt 0:00:11]} Bf5+ {[%emt 0:00:16]} 29. Bd3 {[%emt 0:00:20]} Rxc4+ {[%emt 0:00:26]} 30. Qxc4 {[%emt 0:01:01]} Qb2# {[%emt 0:00:08]} 0-1

[Event "GER-ch Youth U14 2020"]
[Site "Willingen"]
[Date "2020.10.22"]
[Round "4.18"]
[White "Mimkes, Antal"]
[Black "Lerchl, Clemens"]
[Result "1-0"]
[ECO "B50"]
[WhiteElo "1567"]
[BlackElo "1699"]
[Annotator "NA RC"]
[PlyCount "57"]
[EventDate "2020.10.20"]
[EventType "swiss"]
[EventRounds "7"]
[EventCountry "GER"]
[SourceTitle "playchess.com"]
[Source "ChessBase"]
[SourceQuality "1"]
[TimeControl "40/5400+30:1800+30"]

1. e4 {[%emt 0:00:00]} c5 {[%emt 0:00:00]} 2. Nf3 {[%emt 0:00:02]} d6 {[%emt 0:00:00]} 3. b4 {[%emt 0:00:43]} cxb4 {[%emt 0:01:59]} 4. d4 {[%emt 0:01:00]} Nf6 {[%emt 0:01:22]} 5. Bd3 {[%emt 0:02:57]} Bg4 {[%emt 0:03:06]} 6. O-O {[%emt 0:01:25]} d5 {[%emt 0:01:33]} 7. e5 {[%emt 0:03:28]} Ne4 {[%emt 0:00:33]} 8. Re1 {[%emt 0:06:08]} Nc3 {[%emt 0:02:47]} 9. Nxc3 {[%emt 0:02:41]} bxc3 {[%emt 0:00:08]} 10. h3 {[%emt 0:02:36]} Bxf3 {[%emt 0:01:25]} 11. Qxf3 {[%emt 0:03:59]} e6 {[%emt 0:00:08]} 12. Qg4 {[%emt 0:03:29]} h6 {[%emt 0:03:00]} 13. f4 {[%emt 0:04:04]} g6 {[%emt 0:09:31]} 14. Bxg6 {[%emt 0:03:31]} fxg6 {[%emt 0:01:06]} 15. Qxe6+ {[%emt 0:00:41]} Be7 {[%emt 0:03:33]} 16. Qxg6+ {[%emt 0:01:02]} Kd7 {[%emt 0:00:06]} 17. f5 {[%emt 0:02:13]} Qb6 {[%emt 0:05:51]} 18. e6+ {[%emt 0:04:27]} Kc8 {[%emt 0:01:08]} 19. Qg7 {[%emt 0:02:05]} Qd8 {[%emt 0:00:51]} 20. Re3 {[%emt 0:08:58]} Bf6 {[%emt 0:05:31]} 21. Rxc3+ {[%emt 0:06:28]} Nc6 {[%emt 0:00:08]} 22. Qg4 {[%emt 0:01:35]} Qb6 {[%emt 0:03:14]} 23. Rc5 {[%emt 0:06:04]} Qd8 {[%emt 0:12:16]} 24. c3 {[%emt 0:03:34]} Qe7 {[%emt 0:05:33]} 25. Ba3 {[%emt 0:03:31]} Qd8 {[%emt 0:02:13]} 26. Qf3 {[%emt 0:01:17]} Rg8 {[%emt 0:03:08]} 27. Rxd5 {[%emt 0:02:57]} Qc7 {[%emt 0:01:43]} 28. Rd7 {[%emt 0:04:40]} Qg3 {[%emt 0:01:07]} 29. Rf1 {[%emt 0:04:18]} 1-0

[Event "GER-ch Youth U14 2020"]
[Site "Willingen"]
[Date "2020.10.22"]
[Round "4.19"]
[White "Englert, Luca"]
[Black "Tovmasyan, Minas"]
[Result "0-1"]
[ECO "B23"]
[WhiteElo "1530"]
[BlackElo "1658"]
[Annotator "NA RC"]
[PlyCount "86"]
[EventDate "2020.10.20"]
[EventType "swiss"]
[EventRounds "7"]
[EventCountry "GER"]
[SourceTitle "playchess.com"]
[Source "ChessBase"]
[SourceQuality "1"]
[TimeControl "40/5400+30:1800+30"]

1. e4 {[%emt 0:00:00]} c5 {[%emt 0:00:00]} 2. Nc3 {[%emt 0:00:00]} e6 {[%emt 0:00:52]} 3. f4 {[%emt 0:00:00]} d5 {[%emt 0:08:34]} 4. Bb5+ {[%emt 0:04:25]} Bd7 {[%emt 0:01:04]} 5. exd5 Bxb5 {[%emt 0:07:12]} 6. Nxb5 {[%emt 0:00:40]} exd5 {[%emt 0:00:30]} 7. Qh5 {[%emt 0:00:48]} Qe7+ {[%emt 0:08:23]} 8. Qe5 {[%emt 0:01:43]} Qxe5+ {[%emt 0:03:26]} 9. fxe5 {[%emt 0:00:10]} Kd7 {[%emt 0:06:07]} 10. Nf3 {[%emt 0:00:55]} Nc6 {[%emt 0:15:05]} 11. O-O {[%emt 0:00:44]} h6 {[%emt 0:11:22]} 12. b3 {[%emt 0:02:02]} a6 {[%emt 0:04:19]} 13. Nc3 {[%emt 0:00:16]} d4 {[%emt 0:07:04]} 14. Nd5 {[%emt 0:00:20]} Re8 {[%emt 0:01:47]} 15. Re1 {[%emt 0:01:45]} Nge7 {[%emt 0:01:53]} 16. Nf4 {[%emt 0:01:46]} Kc8 {[%emt 0:08:53]} 17. e6 {[%emt 0:01:57]} fxe6 {[%emt 0:00:57]} 18. Rxe6 {[%emt 0:00:18]} g5 {[%emt 0:03:45]} 19. Ng6 {[%emt 0:01:07]} Rh7 {[%emt 0:00:58]} 20. Ba3 {[%emt 0:00:47]} Kd7 {[%emt 0:03:04]} 21. Rae1 {[%emt 0:00:28]} b6 {[%emt 0:00:34]} 22. d3 {[%emt 0:02:57]} Rc8 {[%emt 0:01:14]} 23. Nd2 {[%emt 0:02:31]} Rg7 {[%emt 0:02:42]} 24. Nxf8+ {[%emt 0:03:02]} Rxf8 {[%emt 0:00:00]} 25. Rxh6 {[%emt 0:00:36]} Nf5 {[%emt 0:00:39]} 26. Rh3 {[%emt 0:02:02]} g4 {[%emt 0:00:55]} 27. Rh5 {[%emt 0:00:19]} Ne3 {[%emt 0:01:08]} 28. Bc1 {[%emt 0:02:18]} Rgf7 {[%emt 0:00:21]} 29. h4 {[%emt 0:01:38]} Rf2 {[%emt 0:00:56]} 30. Rh7+ {[%emt 0:01:05]} Kd8 {[%emt 0:00:27]} 31. Kh1 {[%emt 0:03:23]} Nxc2 {[%emt 0:00:46]} 32. Rg1 {[%emt 0:00:53]} Ne5 {[%emt 0:00:28]} 33. Ne4 {[%emt 0:00:35]} Re2 {[%emt 0:00:32]} 34. Nd6 {[%emt 0:00:13]} Ne3 {[%emt 0:00:31]} 35. h5 {[%emt 0:01:29]} g3 {[%emt 0:00:26]} 36. h6 {[%emt 0:00:39]} Nxd3 {[%emt 0:00:29]} 37. Nf7+ {[%emt 0:01:18]} Kc8 {[%emt 0:00:35]} 38. Bxe3 {[%emt 0:00:35]} Nf2+ {[%emt 0:00:29]} 39. Bxf2 {[%emt 0:00:12]} gxf2 {[%emt 0:00:01]} 40. Rh8 {[%emt 0:01:29]} Rxh8 {[%emt 0:00:24]} 41. Nxh8 {[%emt 0:30:12]} Re1 {[%emt 0:05:16]} 42. Rxe1 {[%emt 0:00:00]} fxe1=Q+ {[%emt 0:00:55]} 43. Kh2 {[%emt 0:00:00]} Qe5+ {[%emt 0:00:16]} 0-1

[Event "GER-ch Youth U14 2020"]
[Site "Willingen"]
[Date "2020.10.22"]
[Round "4.20"]
[White "Ehrig, Leon Chris"]
[Black "Pfeffer, Samuel"]
[Result "1-0"]
[ECO "C68"]
[WhiteElo "1718"]
[BlackElo "1427"]
[Annotator "NA RC"]
[PlyCount "39"]
[EventDate "2020.10.20"]
[EventType "swiss"]
[EventRounds "7"]
[EventCountry "GER"]
[SourceTitle "playchess.com"]
[Source "ChessBase"]
[SourceQuality "1"]
[TimeControl "40/5400+30:1800+30"]

1. e4 {[%emt 0:00:00]} e5 {[%emt 0:00:00]} 2. Nf3 {[%emt 0:00:00]} Nc6 {[%emt 0:01:06]} 3. Bb5 {[%emt 0:00:00]} a6 {[%emt 0:01:41]} 4. Bxc6 {[%emt 0:00:33]} dxc6 {[%emt 0:00:52]} 5. O-O {[%emt 0:00:14]} Bg4 {[%emt 0:01:59]} 6. h3 {[%emt 0:00:46]} h5 {[%emt 0:01:35]} 7. d3 {[%emt 0:00:10]} g5 {[%emt 0:01:46]} 8. hxg4 {[%emt 0:03:27]} hxg4 {[%emt 0:08:16]} 9. Nxe5 {[%emt 0:05:03]} g3 {[%emt 0:03:17]} 10. Qf3 {[%emt 0:16:32]} Qf6 {[%emt 0:19:17]} 11. Qxf6 {[%emt 0:04:26]} Nxf6 {[%emt 0:00:03]} 12. Be3 {[%emt 0:00:15]} Bd6 {[%emt 0:01:37]} 13. Bd4 {[%emt 0:13:39]} c5 {[%emt 0:02:26]} 14. Bc3 {[%emt 0:01:38]} b5 {[%emt 0:02:56]} 15. Nf3 {[%emt 0:08:55]} Be7 {[%emt 0:03:48]} 16. fxg3 {[%emt 0:00:45]} O-O-O {[%emt 0:03:45]} 17. Nxg5 {[%emt 0:02:28]} c4 {[%emt 0:03:49]} 18. Bxf6 {[%emt 0:02:50]} Bxf6 {[%emt 0:00:50]} 19. Rxf6 {[%emt 0:00:11]} cxd3 {[%emt 0:00:46]} 20. cxd3 {[%emt 0:00:44]} 1-0